bitfinex/quotes_BTCUSD_20220109
["timestamp","ask_amount","ask_price","bid_price","bid_amount"]
[1641737849217,0.00020764,41654.0,41653.0,1.43041081]
[1641737849415,0.00041012,41656.0,41653.0,1.43041081]
[1641737849615,0.00041012,41656.0,41654.0,0.7150186]
[1641737849914,0.00041012,41656.0,41654.0,0.435712]
[1641737850161,0.00041012,41656.0,41654.0,0.95299522]
[1641737850361,0.00041012,41656.0,41654.0,1.09354128]
[1641737850561,0.00041011,41657.0,41654.0,1.37152793]
[1641737850760,0.00041011,41657.0,41655.0,0.180027]
[1641737850962,0.00041011,41657.0,41656.0,0.435712]
[1641737851161,0.00041011,41657.0,41656.0,0.37582135]
[1641737851162,0.00031011,41657.0,41656.0,0.37582135]
[1641737851361,0.0001,41657.0,41656.0,0.37582135]
[1641737851562,0.0001,41657.0,41656.0,0.42582135]
[1641737851961,0.0001,41657.0,41656.0,0.75952921]
[1641737852363,0.0001,41657.0,41656.0,0.77452921]
[1641737854310,0.0001,41657.0,41656.0,0.77752921]
[1641737854807,0.0001,41657.0,41656.0,0.44382135]
[1641737855607,0.0001,41657.0,41656.0,0.42582135]
[1641737856006,0.0001,41657.0,41656.0,0.74810335]
[1641737856407,0.0001,41657.0,41656.0,0.76410335]
[1641737856810,0.0001,41657.0,41656.0,0.44182135]
[1641737857208,0.00031001,41662.0,41661.0,0.80177998]
[1641737857408,0.00031001,41662.0,41661.0,0.84957998]
[1641737858259,0.00031001,41662.0,41661.0,1.23739798]
[1641737858459,0.00031001,41662.0,41661.0,1.24439798]
[1641737859061,0.00031001,41662.0,41661.0,0.85657998]
[1641737860263,0.00031001,41662.0,41661.0,0.84957998]
[1641737860462,0.00031001,41662.0,41661.0,0.85657998]
[1641737861067,0.00021001,41662.0,41661.0,0.85657998]
[1641737861310,0.41007336,41668.0,41662.0,0.120034]
[1641737861509,0.00021528,41664.0,41663.0,0.12003757]
[1641737861710,0.41007336,41668.0,41663.0,0.12003757]
[1641737862109,0.40507336,41668.0,41663.0,0.12003757]
[1641737862313,0.82507336,41668.0,41663.0,0.12003757]
[1641737862710,0.42,41668.0,41663.0,0.12003757]
[1641737863511,0.42,41668.0,41663.0,0.18005657]
[1641737864317,0.42,41668.0,41663.0,0.18105657]
[1641737864714,0.42021527,41668.0,41663.0,0.18105657]
[1641737865664,0.42021527,41668.0,41663.0,0.18005657]
[1641737866166,0.42021527,41668.0,41662.0,0.00019735]
[1641737866467,0.42021527,41668.0,41663.0,0.002]
[1641737866666,0.42021527,41668.0,41661.0,0.67502487]
[1641737866866,0.42,41668.0,41661.0,0.67502487]
[1641737867167,0.42021527,41668.0,41663.0,0.06002244]
[1641737867365,0.42021527,41668.0,41663.0,0.12004444]
[1641737868068,0.42,41668.0,41663.0,0.12004444]
[1641737869207,0.42021527,41668.0,41663.0,0.18006644]
[1641737870210,0.42,41668.0,41663.0,0.18006644]
[1641737870410,0.42021527,41668.0,41663.0,0.18006644]
[1641737872409,0.82837054,41668.0,41663.0,0.18006644]
[1641737872656,0.82858581,41668.0,41663.0,0.12004444]
[1641737873655,0.82857785,41668.0,41663.0,0.12004444]
[1641737873856,0.82857785,41668.0,41663.0,0.18006544]
[1641737877920,0.82878545,41668.0,41663.0,0.18006544]
[1641737878219,0.82857814,41668.0,41663.0,0.18006544]
[1641737878417,0.82857814,41668.0,41663.0,0.18106544]
[1641737879619,0.82857814,41668.0,41663.0,0.18006544]
[1641737880055,0.82837054,41668.0,41663.0,0.18006544]
[1641737880258,0.82857814,41668.0,41663.0,0.18006544]
[1641737880658,0.82857814,41668.0,41663.0,0.17006544]
[1641737881859,0.40837054,41667.0,41663.0,0.17006544]
[1641737882461,0.40857813,41667.0,41663.0,0.17006544]
[1641737883060,0.40857813,41667.0,41663.0,0.11004444]
[1641737883061,0.73744291,41667.0,41663.0,0.11004444]
[1641737883261,0.387818,41666.0,41661.0,0.56720087]
[1641737883464,0.79618854,41666.0,41661.0,0.56720087]
[1641737884214,0.40837054,41665.0,41663.0,0.120031]
[1641737885019,0.40837054,41665.0,41663.0,0.24006493]
[1641737885818,0.40837054,41664.0,41663.0,0.24006493]
[1641737886218,0.51149814,41666.0,41663.0,0.24006493]
[1641737886619,0.023,41664.0,41663.0,0.24006493]
[1641737887019,0.43165376,41664.0,41663.0,0.24006493]
[1641737887418,0.023,41664.0,41663.0,0.24006493]
[1641737888459,0.036,41664.0,41663.0,0.24006493]
[1641737888660,0.013,41664.0,41663.0,0.24006493]
[1641737889757,0.51129055,41665.0,41663.0,0.24006493]
[1641737890457,0.024,41665.0,41663.0,0.24006493]
[1641737890658,0.024,41665.0,41662.0,0.22243202]
[1641737890858,0.019,41665.0,41662.0,0.22243202]
[1641737891060,0.019,41665.0,41663.0,0.060015]
[1641737891312,0.019,41665.0,41663.0,0.120031]
[1641737891516,0.51110865,41664.0,41663.0,0.120031]
[1641737892108,0.0002076,41666.0,41663.0,0.120031]
[1641737892512,0.02,41664.0,41663.0,0.120031]
[1641737893815,0.0002076,41666.0,41663.0,0.120031]
[1641737894612,0.056,41666.0,41663.0,0.120031]
[1641737894915,0.056,41666.0,41663.0,0.18004763]
[1641737895763,0.00020759,41667.0,41663.0,0.18004763]
[1641737896465,0.01420759,41667.0,41663.0,0.18004763]
[1641737896863,0.3619607,41667.0,41663.0,0.18004763]
[1641737897665,0.34775311,41666.0,41663.0,0.49120958]
[1641737898265,0.3479607,41667.0,41663.0,0.49120958]
[1641737898464,0.025,41666.0,41663.0,0.49120958]
[1641737898911,0.025,41666.0,41663.0,0.18004763]
[1641737899712,0.51124632,41664.0,41663.0,0.18004763]
[1641737900115,1.0,41666.0,41663.0,0.18004763]
[1641737900518,0.063,41664.0,41663.0,0.18004763]
[1641737900715,0.57422183,41664.0,41663.0,0.18004763]
[1641737901115,0.063,41664.0,41663.0,0.18004763]
[1641737901720,0.51121282,41665.0,41663.0,0.18004763]
[1641737901917,1.0002076,41666.0,41663.0,0.18004763]
[1641737902219,0.51121969,41664.0,41663.0,0.18004763]
[1641737902418,0.51120107,41665.0,41663.0,0.18004763]
[1641737903262,1.05820759,41666.0,41663.0,0.18004763]
[1641737903466,0.51120213,41664.0,41663.0,0.18004763]
[1641737903863,1.00020759,41666.0,41663.0,0.18004763]
[1641737904269,1.0,41666.0,41663.0,0.18004763]
[1641737904465,0.51119029,41665.0,41663.0,0.18504763]
[1641737904867,1.035,41666.0,41663.0,0.18504763]
[1641737905466,0.51118174,41665.0,41663.0,0.18504763]
[1641737905763,0.51118174,41665.0,41663.0,0.18004763]
[1641737905967,1.0,41666.0,41663.0,0.18004763]
[1641737906420,1.0,41666.0,41664.0,0.0478]
[1641737906620,0.77654573,41666.0,41665.0,0.687818]
[1641737906825,0.77654573,41666.0,41665.0,0.495616]
[1641737907024,0.77654573,41666.0,41665.0,0.695616]
[1641737907321,0.77654573,41666.0,41665.0,0.98252009]
[1641737907620,0.005,41666.0,41665.0,1.33573684]
[1641737907822,0.42020759,41668.0,41665.0,1.33573684]
[1641737908020,0.42020759,41668.0,41667.0,0.31507632]
[1641737908220,0.42020759,41668.0,41667.0,0.81068832]
[1641737908420,0.00041001,41670.0,41668.0,0.9]
[1641737908622,0.00041001,41671.0,41668.0,0.9]
[1641737908623,0.00041001,41681.0,41680.0,0.56708999]
[1641737908822,0.00041001,41681.0,41680.0,0.69573999]
[1641737909022,0.00082002,41682.0,41680.0,0.79573999]
[1641737909222,0.00082002,41682.0,41681.0,0.44678836]
[1641737909427,0.00082002,41682.0,41681.0,1.53215213]
[1641737909625,0.00082002,41682.0,41681.0,1.75391581]
[1641737909922,0.00031001,41684.0,41683.0,0.45]
[1641737910174,0.0002,41685.0,41683.0,0.985618]
[1641737910376,0.00041001,41687.0,41685.0,0.85]
[1641737910575,0.00041001,41687.0,41686.0,1.483518]
[1641737910779,0.1703765,41688.0,41687.0,0.7]
[1641737910976,0.1703765,41688.0,41687.0,4.45496183]
[1641737911180,0.00421001,41689.0,41688.0,0.44240802]
[1641737911378,0.00052002,41693.0,41689.0,0.387654]
[1641737911576,0.00031001,41692.0,41691.0,0.985554]
[1641737911777,0.00031001,41692.0,41691.0,1.033354]
[1641737911979,0.00031001,41692.0,41691.0,1.133354]
[1641737912181,0.01025351,41701.0,41691.0,1.45067792]
[1641737912380,0.00041001,41717.0,41703.0,0.09308809]
[1641737912381,0.00031001,41707.0,41703.0,0.09308809]
[1641737912580,0.00031001,41707.0,41703.0,0.21661809]
[1641737912779,0.00031001,41707.0,41703.0,0.60427209]
[1641737913178,0.00031001,41707.0,41703.0,0.70427209]
[1641737913380,0.00073519,41706.0,41703.0,1.09117715]
[1641737913814,0.0003,41705.0,41703.0,1.09117715]
[1641737914013,0.0003,41705.0,41704.0,0.387654]
[1641737914214,0.0003,41705.0,41704.0,0.435454]
[1641737914517,0.0003,41705.0,41704.0,0.462454]
[1641737914717,0.0003,41705.0,41704.0,0.0748]
[1641737914914,0.0003,41705.0,41704.0,0.027]
[1641737914915,0.00150454,41705.0,41704.0,0.027]
[1641737915113,0.38927854,41705.0,41704.0,0.027]
[1641737915714,0.77378984,41705.0,41704.0,0.027]
[1641737915915,0.77297797,41705.0,41703.0,0.09314809]
[1641737916514,0.78397797,41705.0,41703.0,0.09814809]
[1641737916714,0.28535684,41704.0,41703.0,0.09814809]
[1641737916917,0.54710684,41704.0,41703.0,0.09814809]
[1641737917120,1.05160421,41704.0,41703.0,0.09814809]
[1641737917317,0.60160421,41704.0,41703.0,0.09814809]
[1641737917563,0.26175,41704.0,41703.0,0.09814809]
[1641737917861,0.54304936,41704.0,41703.0,0.09314809]
[1641737918063,0.26175,41704.0,41703.0,0.09314809]
[1641737918260,0.52352321,41704.0,41703.0,0.15310909]
[1641737918461,0.26175,41704.0,41703.0,0.15310909]
[1641737918661,0.011,41704.0,41703.0,0.09614809]
[1641737919062,0.461,41704.0,41703.0,0.09614809]
[1641737919261,1.25096555,41704.0,41703.0,0.09614809]
[1641737919862,0.929654,41704.0,41703.0,0.09614809]
[1641737920059,0.929654,41704.0,41703.0,0.09314809]
[1641737920060,1.21395016,41704.0,41703.0,0.09314809]
[1641737920661,1.24333245,41704.0,41703.0,0.09314809]
[1641737921062,0.931774,41704.0,41703.0,0.09314809]
[1641737921314,1.2492481,41704.0,41703.0,0.09314809]
[1641737921915,0.918774,41704.0,41703.0,0.09314809]
[1641737922518,0.483774,41704.0,41703.0,0.09314809]
[1641737922817,0.402774,41704.0,41703.0,0.09314809]
[1641737923917,0.387774,41704.0,41703.0,0.09314809]
[1641737924317,0.387774,41704.0,41702.0,0.05311063]
[1641737924517,0.26175,41703.0,41699.0,0.119929]
[1641737924717,0.01912,41704.0,41699.0,0.119929]
[1641737924919,0.01912,41704.0,41699.0,0.059965]
[1641737925367,0.01912,41704.0,41701.0,0.05996347]
[1641737925667,0.01932746,41704.0,41701.0,0.05996347]
[1641737925869,0.28160793,41703.0,41696.0,0.119928]
[1641737926270,0.28160793,41703.0,41694.0,0.0478]
[1641737926668,0.00020747,41702.0,41696.0,0.025]
[1641737926868,0.00020747,41702.0,41696.0,0.084971]
[1641737927068,0.38172185,41698.0,41696.0,0.084971]
[1641737928369,0.38172185,41698.0,41696.0,0.059971]
[1641737928569,0.38372185,41698.0,41696.0,0.080971]
[1641737928818,0.00020747,41699.0,41697.0,0.05996941]
[1641737928819,0.36564681,41699.0,41697.0,0.05996941]
[1641737930021,0.36543934,41699.0,41697.0,0.05996941]
[1641737930219,0.36543934,41699.0,41697.0,0.11993841]
[1641737930419,0.36543934,41699.0,41698.0,0.059966]
[1641737930619,0.36943934,41699.0,41698.0,0.059966]
[1641737931218,0.004,41699.0,41698.0,0.059966]
[1641737931419,0.004,41699.0,41698.0,0.44762]
[1641737931620,0.004,41699.0,41698.0,0.54762]
[1641737931818,0.00020747,41701.0,41698.0,0.54762]
[1641737932020,0.00012,41699.0,41698.0,0.21993029]
[1641737932420,0.00012,41699.0,41698.0,0.60758429]
[1641737932672,0.00012,41699.0,41698.0,0.62158429]
[1641737933471,0.00012,41699.0,41698.0,0.67158429]
[1641737933871,0.00012,41699.0,41698.0,0.70538429]
[1641737934673,0.00020747,41701.0,41700.0,0.32039222]
[1641737934874,0.00020747,41701.0,41700.0,0.36819222]
[1641737935076,0.00020747,41701.0,41700.0,0.46819222]
[1641737935474,0.00020746,41703.0,41700.0,0.46819222]
[1641737935674,0.00020746,41703.0,41700.0,0.1478]
[1641737936075,0.00020746,41703.0,41700.0,0.0478]
[1641737936527,0.00020746,41704.0,41700.0,0.0478]
[1641737936718,0.2847536,41701.0,41700.0,0.0668]
[1641737937519,0.2847536,41701.0,41700.0,0.019]
[1641737937821,0.00020746,41703.0,41695.0,0.167729]
[1641737938019,0.00020746,41703.0,41697.0,0.119926]
[1641737938619,0.00720746,41703.0,41697.0,0.158926]
[1641737938819,0.42414032,41699.0,41697.0,0.21889]
[1641737939020,0.42414032,41699.0,41698.0,0.05996773]
[1641737939620,0.00020746,41702.0,41698.0,0.05996773]
[1641737940062,0.00020747,41701.0,41700.0,0.059965]
[1641737940567,0.00720747,41701.0,41700.0,0.087965]
[1641737941163,0.007,41701.0,41700.0,0.087965]
[1641737941963,0.3321221,41704.0,41700.0,0.059965]
[1641737942164,0.00020746,41703.0,41702.0,0.059963]
[1641737942364,0.65997776,41703.0,41698.0,0.33984711]
[1641737942567,0.65997776,41703.0,41700.0,0.021]
[1641737943067,0.6597703,41703.0,41700.0,0.080964]
[1641737943266,0.6597703,41703.0,41700.0,0.080966]
[1641737943466,0.6597703,41703.0,41700.0,0.021]
[1641737943920,0.6597703,41703.0,41698.0,0.05996791]
[1641737944120,0.3295579,41699.0,41695.0,0.0478]
[1641737944923,0.2721163,41703.0,41695.0,0.0478]
[1641737945125,0.2721163,41703.0,41698.0,0.05996825]
[1641737945325,0.2721163,41703.0,41696.0,0.30376958]
[1641737945524,0.00020747,41701.0,41696.0,0.47150158]
[1641737946326,0.00020747,41701.0,41697.0,0.059966]
[1641737946526,0.00020747,41701.0,41697.0,0.11992853]
[1641737946926,0.00020747,41701.0,41699.0,0.059967]
[1641737947570,0.62264479,41704.0,41700.0,0.059966]
[1641737947571,0.60895044,41704.0,41700.0,0.059966]
[1641737947871,0.00020746,41702.0,41700.0,0.059966]
[1641737948275,0.00020746,41702.0,41699.0,0.059967]
[1641737948675,0.00920746,41702.0,41699.0,0.059967]
[1641737948873,0.009,41702.0,41699.0,0.059967]
[1641737949874,0.00020746,41703.0,41699.0,0.059967]
[1641737950674,0.00920746,41703.0,41698.0,0.059969]
[1641737951719,0.00888803,41703.0,41699.0,0.059968]
[1641737951916,0.3321221,41704.0,41699.0,0.059968]
[1641737951917,0.3321221,41704.0,41700.0,0.059967]
[1641737952120,0.38786146,41703.0,41700.0,0.059967]
[1641737952721,0.39586146,41703.0,41700.0,0.119933]
[1641737952920,0.39586146,41703.0,41700.0,0.059966]
[1641737953120,0.39586146,41703.0,41701.0,0.059965]
[1641737953320,0.395654,41703.0,41701.0,0.059965]
[1641737953821,0.387654,41703.0,41700.0,0.059966]
[1641737954022,0.387654,41703.0,41701.0,0.05996748]
[1641737954223,0.387654,41703.0,41700.0,0.059968]
[1641737954624,0.397654,41703.0,41700.0,0.059968]
[1641737955163,0.397654,41703.0,41700.0,0.05996812]
[1641737955365,0.397654,41703.0,41700.0,0.11993512]
[1641737956565,0.387654,41703.0,41700.0,0.17990312]
[1641737956765,0.412654,41703.0,41700.0,0.24287012]
[1641737957666,0.412654,41703.0,41701.0,0.059966]
[1641737957865,0.387654,41703.0,41701.0,0.059966]
[1641737958816,0.430654,41703.0,41701.0,0.059966]
[1641737959018,0.430654,41703.0,41697.0,0.11993492]
[1641737959216,0.430654,41703.0,41696.0,0.0478]
[1641737959419,0.430654,41703.0,41692.0,2.08e-06]
[1641737959420,2.08e-06,41693.0,41692.0,2.08e-06]
[1641737959620,0.06972605,41693.0,41686.0,0.39402264]
[1641737959820,0.00123476,41687.0,41686.0,0.39402264]
[1641737960117,0.02210476,41687.0,41686.0,0.39402264]
[1641737960417,0.02210476,41687.0,41681.0,0.30286802]
[1641737960418,0.29519753,41687.0,41681.0,0.30286802]
[1641737960818,0.30219753,41687.0,41681.0,0.30286802]
[1641737961020,0.28132753,41687.0,41681.0,0.30286802]
[1641737961422,0.28132753,41687.0,41683.0,0.05999103]
[1641737961423,0.38949403,41685.0,41683.0,0.05999103]
[1641737961620,0.90038426,41685.0,41683.0,0.05999103]
[1641737961820,0.51089023,41685.0,41683.0,0.05999103]
[1641737962023,0.51089023,41685.0,41683.0,0.11997903]
[1641737962221,0.0002075,41686.0,41683.0,0.11997903]
[1641737962422,0.51092778,41686.0,41683.0,0.11997903]
[1641737962663,0.51092778,41686.0,41683.0,0.11997503]
[1641737962664,0.001,41685.0,41683.0,0.11997503]
[1641737963064,0.001,41685.0,41684.0,0.387654]
[1641737963468,0.50689019,41689.0,41684.0,0.387654]
[1641737963666,0.50689019,41689.0,41688.0,0.30296133]
[1641737963865,0.00164124,41693.0,41688.0,0.30296133]
[1641737964069,0.00082988,41693.0,41690.0,0.11995536]
[1641737964269,0.00156389,41695.0,41690.0,0.11995536]
[1641737964466,0.00156389,41695.0,41690.0,0.059978]
[1641737964665,0.006,41693.0,41690.0,0.059978]
[1641737965468,0.26483539,41693.0,41686.0,0.179938]
[1641737965668,0.00041155,41691.0,41679.0,0.972194]
[1641737966524,0.27716271,41687.0,41682.0,0.059987]
[1641737966730,0.40999302,41688.0,41684.0,0.05998699]
[1641737967124,0.45999302,41688.0,41680.0,0.28150006]
[1641737967527,0.29839806,41687.0,41680.0,0.28150006]
[1641737967725,0.6211378,41687.0,41684.0,0.05998711]
[1641737968127,0.6211378,41687.0,41680.0,0.28150006]
[1641737968325,0.40999302,41688.0,41680.0,0.28150006]
[1641737968525,0.00021106,41689.0,41680.0,0.28150006]
[1641737968725,0.006,41687.0,41683.0,0.11997419]
[1641737968926,0.006,41687.0,41680.0,0.40147006]
[1641737969127,0.006,41687.0,41680.0,0.46146106]
[1641737969328,0.27707382,41687.0,41680.0,0.46146106]
[1641737969529,0.59592822,41686.0,41680.0,0.28150006]
[1641737969731,0.59581034,41686.0,41680.0,0.28150006]
[1641737970367,0.59581034,41686.0,41679.0,0.05999466]
[1641737970566,0.3505912,41682.0,41679.0,0.05999466]
[1641737970767,0.3505912,41682.0,41680.0,0.059992]
[1641737970971,0.3505912,41682.0,41678.0,0.00020367]
[1641737971368,0.61981034,41686.0,41678.0,0.00020367]
[1641737971970,0.59581034,41686.0,41679.0,0.05999283]
[1641737972369,0.387654,41685.0,41679.0,0.05999283]
[1641737972568,0.387654,41685.0,41678.0,0.00019205]
[1641737972868,0.387654,41685.0,41676.0,0.3334675]
[1641737973068,0.34806529,41686.0,41681.0,0.059989]
[1641737973268,0.387654,41685.0,41682.0,0.05998998]
[1641737974818,0.397654,41685.0,41682.0,0.05998998]
[1641737975418,0.397654,41685.0,41682.0,0.059988]
[1641737976020,0.387654,41685.0,41679.0,0.119978]
[1641737976220,0.00041477,41689.0,41684.0,0.24828415]
[1641737976419,0.387654,41688.0,41684.0,0.24828415]
[1641737977022,0.32569272,41687.0,41681.0,0.1199704]
[1641737977223,0.26175,41686.0,41675.0,0.1]
[1641737977420,0.0004603,41687.0,41678.0,0.00019257]
[1641737977667,0.0004603,41687.0,41680.0,0.059992]
[1641737977966,0.387654,41686.0,41680.0,0.059992]
[1641737978167,0.387654,41686.0,41683.0,0.23909978]
[1641737978766,0.403654,41686.0,41683.0,0.23909978]
[1641737978968,0.403654,41686.0,41678.0,0.00019258]
[1641737979166,0.0004603,41687.0,41680.0,0.05999219]
[1641737979365,0.261743,41686.0,41680.0,0.05999219]
[1641737979965,0.261743,41686.0,41683.0,0.24413021]
[1641737980366,0.261743,41686.0,41683.0,0.30411945]
[1641737980367,0.26142018,41686.0,41683.0,0.30411945]
[1641737980766,0.27642018,41686.0,41683.0,0.24413021]
[1641737982118,0.26142018,41686.0,41683.0,0.24413021]
[1641737982717,0.27842018,41686.0,41683.0,0.24413021]
[1641737983920,0.27842018,41686.0,41683.0,0.304119]
[1641737984118,0.26142018,41686.0,41683.0,0.304119]
[1641737984719,0.26942018,41686.0,41683.0,0.316119]
[1641737984922,0.26942018,41686.0,41683.0,0.25613021]
[1641737985780,0.26942018,41686.0,41683.0,0.012]
[1641737985984,0.26142018,41686.0,41678.0,0.00019254]
[1641737986583,0.00074573,41683.0,41678.0,0.00019254]
[1641737986884,0.66266512,41679.0,41678.0,0.04419254]
[1641737987183,1.41435415,41679.0,41678.0,0.04419254]
[1641737987382,1.41435415,41679.0,41678.0,0.00028509]
[1641737987783,1.01435415,41679.0,41678.0,0.00028509]
[1641737987982,1.33806815,41679.0,41678.0,0.00019255]
[1641737988382,0.00120021,41672.0,41670.0,0.004]
[1641737988583,0.0231,41674.0,41670.0,0.004]
[1641737988842,0.620114,41678.0,41670.0,0.004]
[1641737989443,0.620114,41678.0,41672.0,0.0002031]
[1641737989744,0.323714,41678.0,41676.0,0.24818514]
[1641737989943,0.261419,41677.0,41676.0,0.24818514]
[1641737990148,0.55223264,41677.0,41676.0,0.24818514]
[1641737990344,0.261419,41677.0,41676.0,0.24818514]
[1641737990743,0.277419,41677.0,41676.0,0.24818514]
[1641737990943,0.016,41677.0,41676.0,0.24818514]
[1641737992144,0.40837036,41683.0,41676.0,0.24818514]
[1641737992344,0.63769401,41684.0,41679.0,0.05999456]
[1641737992345,0.261419,41682.0,41679.0,0.05999456]
[1641737993872,0.261419,41682.0,41677.0,0.11999192]
[1641737994274,0.261419,41682.0,41676.0,0.2483767]
[1641737994775,0.06124078,41681.0,41676.0,0.01319156]
[1641737994975,0.22572497,41680.0,41676.0,0.013]
[1641737995279,0.30835033,41677.0,41676.0,0.01319156]
[1641737995477,0.79192683,41677.0,41676.0,0.01319156]
[1641737996076,0.79192683,41677.0,41676.0,0.00019156]
[1641737996323,0.120026,41676.0,41674.0,0.00019158]
[1641737996524,0.261419,41675.0,41674.0,0.00019158]
[1641737997124,0.261419,41675.0,41673.0,0.25364014]
[1641737997624,0.32435033,41677.0,41673.0,0.25364014]
[1641737997826,0.016,41677.0,41673.0,0.25364014]
[1641737998026,0.21089284,41679.0,41673.0,0.25364014]
[1641737998230,0.261419,41678.0,41673.0,0.25364014]
[1641737998424,0.261419,41678.0,41673.0,0.31383469]
[1641737998822,0.265419,41678.0,41673.0,0.31383469]
[1641737999024,0.265419,41678.0,41673.0,0.25383231]
[1641738000087,0.261419,41678.0,41673.0,0.25383231]
[1641738000887,0.271419,41678.0,41673.0,0.25383231]
[1641738001187,0.271419,41678.0,41673.0,0.64521968]
[1641738001391,0.271419,41678.0,41673.0,0.25383231]
[1641738001392,0.01,41678.0,41673.0,0.25383231]
[1641738001588,0.01,41678.0,41673.0,0.25364014]
[1641738001789,0.01,41678.0,41673.0,0.25383232]
[1641738001988,0.00121301,41679.0,41673.0,0.25383232]
[1641738002189,0.21511012,41679.0,41673.0,0.25383232]
[1641738002588,1.0,41676.0,41673.0,0.25383232]
[1641738002789,0.261419,41675.0,41674.0,0.00019214]
[1641738003289,0.17098233,41676.0,41674.0,0.00019214]
[1641738004126,0.17098233,41676.0,41673.0,0.25383228]
[1641738004727,0.17098233,41676.0,41673.0,0.00019214]
[1641738004930,0.060014,41675.0,41673.0,0.00019214]
[1641738005128,0.060014,41675.0,41672.0,0.00019215]
[1641738005330,0.12002967,41675.0,41672.0,0.00019215]
[1641738005531,0.060014,41675.0,41672.0,0.00019215]
[1641738005929,0.120028,41675.0,41672.0,0.00019215]
[1641738006139,0.120028,41675.0,41671.0,0.00019215]
[1641738006329,0.180043,41675.0,41671.0,0.24333496]
[1641738006931,0.186043,41675.0,41671.0,0.24333496]
[1641738007132,0.186043,41675.0,41671.0,0.24333497]
[1641738007432,0.28880907,41673.0,41671.0,0.00019216]
[1641738007674,0.1811228,41672.0,41671.0,0.00019216]
[1641738008277,0.1811228,41672.0,41670.0,0.004]
[1641738008676,0.3817488,41672.0,41670.0,0.004]
[1641738008877,0.3937488,41672.0,41670.0,0.004]
[1641738009679,0.212626,41672.0,41670.0,0.004]
[1641738010076,0.62262557,41674.0,41670.0,0.004]
[1641738010277,0.25288044,41672.0,41670.0,0.004]
[1641738010780,0.31289844,41672.0,41670.0,0.004]
[1641738010978,0.38491644,41672.0,41670.0,0.004]
[1641738012024,0.37291644,41672.0,41670.0,0.004]
[1641738012424,0.25288044,41672.0,41670.0,0.004]
[1641738012727,0.4085683,41671.0,41670.0,0.004]
[1641738013426,0.26288044,41672.0,41670.0,0.004]
[1641738013626,0.01,41672.0,41670.0,0.004]
[1641738014825,0.013,41672.0,41670.0,0.004]
[1641738015668,0.133036,41672.0,41670.0,0.004]
[1641738016268,0.120036,41672.0,41670.0,0.004]
[1641738016968,0.134036,41672.0,41670.0,0.004]
[1641738017868,0.194056,41672.0,41670.0,0.004]
[1641738018068,0.180056,41672.0,41670.0,0.004]
[1641738018921,0.196056,41672.0,41670.0,0.004]
[1641738019520,0.136036,41672.0,41670.0,0.004]
[1641738020220,0.120036,41672.0,41670.0,0.004]
[1641738020621,0.060016,41674.0,41670.0,0.004]
[1641738020823,0.5285983,41675.0,41670.0,0.004]
[1641738021025,0.053,41672.0,41670.0,0.004]
[1641738022677,0.053,41672.0,41670.0,0.00407016]
[1641738022873,0.055,41672.0,41670.0,0.00407016]
[1641738024175,0.37946608,41673.0,41670.0,0.00407016]
[1641738024576,0.060018,41672.0,41670.0,0.00407016]
[1641738024775,0.06002,41671.0,41670.0,0.00407016]
[1641738025775,0.06002,41671.0,41670.0,0.002684]
[1641738026620,0.31944908,41673.0,41670.0,0.002684]
[1641738027022,0.013,41671.0,41670.0,0.002684]
[1641738027624,0.07302,41671.0,41670.0,0.002684]
[1641738028224,0.06002,41671.0,41670.0,0.002684]
[1641738028825,0.36002,41671.0,41670.0,0.002684]
[1641738029026,0.40902,41671.0,41670.0,0.002684]
[1641738029625,0.69985088,41671.0,41670.0,0.002684]
[1641738030275,4.24836403,41671.0,41670.0,0.002684]
[1641738030975,4.26236403,41671.0,41670.0,0.002684]
[1641738031375,4.35212403,41671.0,41670.0,0.002684]
[1641738031577,4.86251514,41671.0,41670.0,0.002684]
[1641738031775,4.91378558,41671.0,41670.0,0.002684]
[1641738031976,4.75339447,41671.0,41670.0,0.002684]
[1641738032176,4.73939447,41671.0,41670.0,0.002684]
[1641738032576,4.78939447,41671.0,41670.0,0.002684]
[1641738032980,4.80039447,41671.0,41670.0,0.002684]
[1641738033377,4.90039447,41671.0,41670.0,0.002684]
[1641738033821,6.17339447,41671.0,41670.0,0.002684]
[1641738034126,6.16239447,41671.0,41670.0,0.002684]
[1641738035025,2.523,41670.0,41668.0,0.00019217]
[1641738035229,1.07753479,41669.0,41668.0,0.00019217]
[1641738035425,1.22753478,41669.0,41668.0,0.00019217]
[1641738035625,3.02295828,41669.0,41651.0,0.39802264]
[1641738035826,0.120094,41658.0,41651.0,0.39802264]
[1641738036027,0.00129272,41655.0,41651.0,0.39802264]
[1641738036228,0.34110964,41654.0,41651.0,0.39802264]
[1641738036426,0.060055,41653.0,41651.0,0.004]
[1641738036729,0.12011,41653.0,41651.0,0.004]
[1641738037326,0.12011,41653.0,41651.0,0.00036388]
[1641738038176,0.32278172,41652.0,41651.0,0.00036388]
[1641738039075,0.33578172,41652.0,41651.0,0.00036388]
[1641738040277,0.32278172,41652.0,41651.0,0.00036388]
[1641738040979,0.33878172,41652.0,41651.0,0.00036388]
[1641738041628,0.33878172,41652.0,41645.0,0.04100558]
[1641738041832,0.120106,41649.0,41645.0,0.04100558]
[1641738042029,0.41183263,41649.0,41645.0,0.04100558]
[1641738042431,0.41183263,41649.0,41639.0,1.32222264]
[1641738042630,3.54850288,41649.0,41640.0,0.9007]
[1641738043029,0.39380595,41647.0,41640.0,0.9007]
[1641738043229,0.33374995,41647.0,41640.0,0.3096]
[1641738043431,0.33374995,41647.0,41645.0,0.27105949]
[1641738043629,0.28146927,41646.0,41645.0,0.27105949]
[1641738044930,0.30646927,41646.0,41645.0,0.27105949]
[1641738046376,0.28146927,41646.0,41645.0,0.27105949]
[1641738046575,0.27953481,41648.0,41645.0,0.27105949]
[1641738046977,0.025,41646.0,41645.0,0.27105949]
[1641738048175,3.51188268,41649.0,41645.0,0.27105949]
[1641738048377,0.28176812,41648.0,41645.0,0.27105949]
[1641738048827,0.28038924,41648.0,41645.0,0.27105949]
[1641738049027,0.30738924,41648.0,41645.0,0.27105949]
[1641738049229,0.027,41648.0,41645.0,0.27105949]
[1641738049428,0.31149148,41648.0,41645.0,0.27105949]
[1641738050030,0.37154548,41648.0,41645.0,0.27105949]
[1641738050230,0.34454548,41648.0,41645.0,0.27105949]
[1641738050432,0.060054,41648.0,41645.0,0.27105949]
[1641738050732,3.49813376,41649.0,41645.0,0.27105949]
[1641738050930,0.30072873,41648.0,41645.0,0.27105949]